fUSD/lending_fUSD_20240609
["ID","MTS","AMOUNT","RATE_DAILY","PERIOD"]
[328884163,1717956640509,-500.0,0.00029182,3]
[328884164,1717956640520,-500.0,0.00029182,3]
[328884165,1717956640530,-172.52,0.00029187,2]
[328884166,1717956640540,-500.0,0.00029191,3]
[328884167,1717956640552,-500.0,0.00029191,3]
[328884168,1717956640561,-500.0,0.00029191,3]
[328884169,1717956640570,-159.81070052,0.00029192,2]
[328884170,1717956640579,-313.14473407,0.00029194,2]
[328884171,1717956640589,-290.8496912,0.00029197,2]
[328884172,1717956640599,-6506.8916049,0.00029197,2]
[328884173,1717956640609,-3556.7096367,0.00029197,2]
[328884174,1717956640619,-1436.7571142,0.00029197,2]
[328884175,1717956640629,-1349.2175,0.00029197,2]
[328884176,1717956640639,-843.0632,0.00029197,2]
[328884177,1717956640650,-321.31956094,0.00029198,2]
[328884178,1717956640660,-318.98174811,0.00029199,2]
[328884179,1717956640670,-500.0,0.000292,3]
[328884180,1717956640681,-500.0,0.000292,3]
[328884181,1717956640695,-500.0,0.000292,3]
[328884182,1717956640706,-531.51415374,0.000292,2]
[328884183,1717956640716,-424.03750159,0.000292,2]
[328884184,1717956640727,-3331.85,0.000292,2]
[328884185,1717956640738,-615.4421,0.000292,2]
[328884186,1717956640748,-502.52172167,0.000292,2]
[328884187,1717956640760,-7500.0,0.000292,2]
[328884188,1717956640770,-161.91737546,0.000292,2]
[328884189,1717956640781,-631.07833811,0.000292,2]
[328884190,1717956640791,-430.95461723,0.000292,2]
[328884191,1717956640801,-602.59396384,0.000292,2]
[328884192,1717956640811,-1014.77234771,0.000292,2]
[328884193,1717956640822,-3633.94594838,0.000292,2]
[328884194,1717956640832,-3713.98132754,0.000292,2]
[328884195,1717956640842,-360.3719291,0.000292,2]
[328884196,1717956640852,-531.51415366,0.00029206,2]
[328884197,1717956640863,-531.51415366,0.00029213,2]
[328884198,1717956640873,-531.51415366,0.00029219,2]
[328884199,1717956640883,-531.51415366,0.00029225,2]
[328884200,1717956640893,-4611.97868944,0.00029229,2]
[328884201,1717956640903,-531.51415366,0.00029232,2]
[328884202,1717956640914,-226.65406987,0.00029233,30]
[328884203,1717956640923,-500.0,0.00029235,15]
[328884204,1717956640933,-2787.5996755,0.00029235,2]
[328884205,1717956640943,-1126.0699001,0.00029235,2]
[328884206,1717956640953,-197.6096409,0.00029237,2]
[328884207,1717956640963,-4436.866528,0.00029237,2]
[328884208,1717956640973,-531.51415366,0.00029238,2]
[328884209,1717956640983,-531.51415366,0.00029245,2]
[328884210,1717956640994,-531.51415366,0.00029251,2]
[328884211,1717956641005,-339.64818296,0.00029255,2]
[328884212,1717956641015,-155.0,0.00029255,2]
[328884213,1717956641025,-1260.45038607,0.00029255,2]
[328884214,1717956641036,-489.12044035,0.00029255,2]
[328884215,1717956641046,-217.32072534,0.00029255,2]
[328884216,1717956641057,-658.7426153,0.00029255,2]
[328884217,1717956641066,-810.36395634,0.00029255,2]
[328884218,1717956641076,-3086.7209705,0.00029256,2]
[328884219,1717956641086,-531.51415366,0.00029257,2]
[328884220,1717956641226,-531.51415366,0.00029264,2]
[328884221,1717956641237,-531.51415366,0.0002927,2]
[328884222,1717956641248,-303.83768075,0.0002929,2]
[328884223,1717956641259,-303.83768075,0.0002929,2]
[328884224,1717956641270,-303.83768075,0.0002929,2]
[328884225,1717956641281,-152.03,0.0002929,2]
[328884226,1717956641291,-152.03,0.0002929,2]
[328884227,1717956641302,-152.03,0.0002929,2]
[328884228,1717956641313,-152.03,0.0002929,2]
[328884229,1717956641323,-152.03,0.0002929,2]
[328884230,1717956641333,-152.03,0.0002929,2]
[328884231,1717956641343,-152.03,0.0002929,2]
[328884232,1717956641355,-152.03,0.0002929,2]
[328884233,1717956641366,-152.03,0.0002929,2]
[328884234,1717956641377,-152.03,0.0002929,2]
[328884235,1717956641387,-152.03,0.0002929,2]
[328884236,1717956641397,-152.03,0.0002929,2]
[328884237,1717956641407,-152.03,0.0002929,2]
[328884238,1717956641417,-152.03,0.0002929,2]
[328884239,1717956641427,-152.03,0.0002929,2]
[328884240,1717956641437,-152.03,0.0002929,2]
[328884241,1717956641446,-152.03,0.0002929,2]
[328884242,1717956641456,-152.03,0.0002929,2]
[328884243,1717956641467,-152.03,0.0002929,2]
[328884244,1717956641477,-152.03,0.0002929,2]
[328884245,1717956641486,-152.03,0.0002929,2]
[328884246,1717956641496,-152.03,0.0002929,2]
[328884247,1717956641506,-152.03,0.0002929,2]
[328884248,1717956641515,-152.03,0.0002929,2]
[328884249,1717956641525,-152.03,0.0002929,2]
[328884250,1717956641535,-152.03,0.0002929,2]
[328884251,1717956641545,-152.03,0.0002929,2]
[328884252,1717956641556,-152.03,0.0002929,2]
[328884253,1717956641566,-152.03,0.0002929,2]
[328884254,1717956641576,-152.03,0.0002929,2]
[328884255,1717956641586,-152.03,0.0002929,2]
[328884256,1717956641595,-152.03,0.0002929,2]
[328884257,1717956641605,-152.03,0.0002929,2]
[328884258,1717956641615,-152.03,0.0002929,2]
[328884259,1717956641625,-152.03,0.0002929,2]
[328884260,1717956641635,-152.03,0.0002929,2]
[328884261,1717956641645,-152.03,0.0002929,2]
[328884262,1717956641655,-152.03,0.0002929,2]
[328884263,1717956641666,-152.03,0.0002929,2]
[328884264,1717956641675,-152.03,0.0002929,2]
[328884265,1717956641687,-152.03,0.0002929,2]
[328884266,1717956641699,-152.03,0.0002929,2]
[328884267,1717956641708,-152.03,0.0002929,2]
[328884268,1717956641718,-152.03,0.0002929,2]
[328884269,1717956641729,-152.03,0.0002929,2]
[328884270,1717956641738,-152.03,0.0002929,2]
[328884271,1717956641749,-152.03,0.0002929,2]
[328884272,1717956641759,-152.03,0.0002929,2]
[328884273,1717956641771,-152.03,0.0002929,2]
[328884274,1717956641781,-152.03,0.0002929,2]
[328884275,1717956641792,-152.03,0.0002929,2]
[328884276,1717956641803,-152.03,0.0002929,2]
[328884277,1717956641813,-152.03,0.0002929,2]
[328884278,1717956641823,-73156.35876597,0.00029297,2]
[328884279,1717956641833,-5579.5952359,0.00029298,2]
[328884280,1717956641843,-163.21533727,0.00029298,2]
[328884281,1717956641854,-5658.23919593,0.00029298,2]
[328884282,1717956641864,-205.76744782,0.00029298,2]
[328884283,1717956641874,-4443.30606049,0.00029298,2]
[328884284,1717956641884,-208.07331361,0.00029298,2]
[328884285,1717956641894,-539.64542846,0.00029298,2]
[328884286,1717956641903,-317.57810067,0.00029298,2]
[328884287,1717956641913,-156.65432858,0.00029298,2]
[328884288,1717956641923,-788.38657622,0.00029298,2]
[328884289,1717956641934,-6135.98835859,0.00029298,2]
[328884290,1717956641944,-3017.14790964,0.00029298,2]
[328884291,1717956641954,-241.34819951,0.00029298,2]
[328884292,1717956641964,-3537.31948195,0.00029298,2]
[328884293,1717956641974,-1251.30968724,0.00029298,2]
[328884294,1717956641984,-155.40225675,0.00029298,2]
[328884295,1717956641994,-2269.2443412,0.00029298,2]
[328884296,1717956642004,-207.26121815,0.00029298,2]
[328884297,1717956642014,-643.96114603,0.00029298,2]
[328884298,1717956642024,-155.0,0.00029298,2]
[328884299,1717956642034,-481.77513052,0.00029298,2]
[328884300,1717956642044,-10971.90868473,0.00029299,2]
[328884301,1717956642054,-999.71679158,0.00029299,2]
[328884302,1717956642064,-2335.70101797,0.00029299,2]
[328884303,1717956642074,-1011.98316121,0.00029299,2]
[328884304,1717956642084,-150.0,0.00029299,2]
[328884305,1717956642094,-214.72451345,0.000293,30]
[328884306,1717956642104,-1188.66146624,0.000293,5]
[328884307,1717956642114,-34787.47813725,0.000293,13]
[328884308,1717956642124,-207665.9260492,0.000293,5]
[328884309,1717956642139,-802499.22717144,0.000293,5]
[328884310,1717956642152,-513275.42514257,0.000293,5]
[328884311,1717956642172,-69859.35116551,0.000293,5]
[328884316,1717956642929,-238.18258066,0.0002915,2]
[328884317,1717956642939,-409.71276042,0.00029182,2]
[328884318,1717956642950,-51440.11712334,0.000293,5]
[328884319,1717956642962,-1409.83044,0.000293,5]
[328884333,1717956645544,-151417.69520218,0.000293,5]
[328884334,1717956645767,-4131.09786517,0.000293,5]
[328884335,1717956645780,-4019.09127962,0.000293,5]
[328884336,1717956645791,-315.6,0.000293,5]
[328884337,1717956646988,-159.4973613,0.000292,2]
[328884338,1717956646998,-28522.23332294,0.000293,5]
[328884339,1717956647192,-6968.8,0.000293,5]
[328884344,1717956695832,8420.0538,0.00014901,2]
[328884345,1717957055233,-545.75067402,0.00016946,2]
[328884346,1717957055258,-2368.60119743,0.00016947,2]
[328884347,1717957055284,-4291.15759947,0.00016947,2]
[328884348,1717957055308,-1392.19071084,0.00016948,2]
[328884349,1717957055333,-2407.8591471,0.0001695,2]
[328884350,1717957056745,3386.25740591,0.00016945,2]
[328884351,1717957261505,-1219.0116262,0.00017157,2]
[328884352,1717957261530,-1236.2806,0.00017158,2]
[328884353,1717957261554,-161.5670759,0.00017804,2]
[328884354,1717957261578,-263.8016458,0.00017805,2]
[328884355,1717957261602,-1253.19125512,0.00017806,2]
[328884356,1717957261627,-1660.0,0.000194,2]
[328884357,1717957261651,-499.99,0.00019452,2]
[328884358,1717957261674,-257.9877105,0.0002,2]
[328884359,1717957261697,-6262.20752304,0.0002,2]
[328884360,1717957261721,-155.0,0.0002,2]
[328884361,1717957407395,5000.0,0.0003,90]
[328884362,1717957436195,2653.97952293,0.00025,30]
[328884363,1717957462754,5000.0,0.000273,60]
[328884401,1717957832217,-156.5803339,0.00017257,2]
[328884406,1717957832227,-535.3796661,0.00017258,2]
[328884436,1717957832420,-373.5,0.00017258,2]
[328884437,1717957832434,-365.21837477,0.00017258,2]
[328884438,1717957832447,-436.578,0.00017258,2]
[328884439,1717957832459,-676.27463912,0.00017258,2]
[328884440,1717957832470,-164.66,0.00021375,2]
[328884441,1717957832481,-156.01882306,0.00021974,2]
[328884442,1717957832491,-193.38,0.00024384,2]
[328884443,1717957832502,-187.14,0.00024384,2]
[328884444,1717957832513,-1026.96,0.00024384,2]
[328884445,1717957832523,-4445.54740735,0.000249,2]
[328884446,1717957832537,-2351.63543851,0.000249,2]
[328884447,1717957832548,-4601.24256149,0.00025,2]
[328884448,1717957832561,-9869.25663874,0.00025,2]
[328884449,1717957832573,-371.19,0.00025376,2]
[328884450,1717957832585,-854.82758455,0.00026073,2]
[328884451,1717957832595,-453.92878064,0.00026075,2]
[328884452,1717957832606,-152.70999531,0.00026579,2]
[328884453,1717957832619,-574.58,0.00026717,2]
[328884454,1717957832629,-1073.99,0.00026719,2]
[328884455,1717957832640,-286.01,0.00026729,2]
[328884456,1717957832651,-250.0,0.00026783,2]
[328884457,1717957832662,-159.19903636,0.00026931,2]
[328884458,1717957832671,-150.0,0.00026988,11]
[328884459,1717957832681,-1000.0,0.00027016,2]
[328884460,1717957832691,-152.70999531,0.00027081,2]
[328884461,1717957832702,-367.4858689,0.00027089,2]
[328884462,1717957832714,-454.4786521,0.00027089,2]
[328884463,1717957832725,-166.451921,0.00027089,2]
[328884464,1717957832735,-90.6694269,0.00027089,2]
[328884465,1717957832748,-689.98112806,0.00027089,2]
[328884466,1717957832760,-387.0989336,0.00027089,2]
[328884467,1717957832772,-157.81329444,0.00027089,2]
[328884468,1717957832782,-156.658641,0.00027089,2]
[328884469,1717957832793,-1508.289956,0.00027089,2]
[328884470,1717957832803,-163.252987,0.00027089,2]
[328884471,1717957832812,-1684.56652523,0.00027197,2]
[328884472,1717957832825,-1292.20198248,0.00027197,2]
[328884473,1717957832857,-1432.68764726,0.00027197,2]
[328884474,1717957832870,-4839.4572648,0.00027197,2]
[328884475,1717957832882,-4155.49658023,0.00027197,2]
[328884476,1717957832892,-152.70999531,0.00027203,2]
[328884477,1717957832902,-6223.573,0.00027222,2]
[328884478,1717957832912,-200.86922192,0.00027251,2]
[328884479,1717957832924,-49.13077808,0.00027251,2]
[328884480,1717957832934,-173.98,0.00027272,2]
[328884481,1717957832944,-350.189,0.00027322,2]
[328884482,1717957832954,-2893.40022192,0.00027322,2]
[328884483,1717957832967,-3742.22652104,0.00027322,2]
[328884484,1717957832983,-11207.28318418,0.00027322,2]
[328884485,1717957832995,-20210.09007286,0.00027322,2]
[328884486,1717957833005,-800.431,0.00027322,2]
[328884487,1717957833015,-6896.87,0.00027393,2]
[328884488,1717957833025,-150.0,0.00027397,2]
[328884489,1717957833035,-157.84,0.00027414,2]
[328884491,1717957833045,-821.964521,0.00027428,2]
[328884493,1717957833055,-1325.562783,0.00027428,2]
[328884495,1717957833066,-1508.289956,0.00027428,2]
[328884496,1717957833076,-165.36,0.00027485,2]
[328884498,1717957833085,-156.658641,0.00027541,2]
[328884500,1717957833095,-167.0,0.00027598,2]
[328884502,1717957833105,-156.02019916,0.0002761,2]
[328884503,1717957833117,-371.19,0.0002764,2]
[328884505,1717957833128,-10000.0,0.00027678,31]
[328884506,1717957833138,-1028.0,0.000277,2]
[328884507,1717957833148,-821.964521,0.00027767,2]
[328884508,1717957833158,-166.451921,0.00027767,2]
[328884509,1717957833167,-1325.562783,0.00027767,2]
[328884526,1717957833335,-1508.289956,0.00027767,2]
[328884527,1717957833345,-163.252987,0.00027767,2]
[328884529,1717957833356,-183.4345884,0.00027833,2]
[328884530,1717957833367,-2011.37343874,0.00027833,2]
[328884531,1717957833376,-159.19903636,0.00027845,2]
[328884532,1717957833387,-155.00711491,0.00027988,2]
[328884533,1717957833396,-156.658641,0.00027992,2]
[328884534,1717957833406,-821.964521,0.00028105,2]
[328884535,1717957833416,-1325.562783,0.00028105,2]
[328884536,1717957833425,-1508.289956,0.00028105,2]
[328884537,1717957833435,-150.0,0.00028118,2]
[328884538,1717957833444,-152.12181681,0.00028249,2]
[328884539,1717957833454,-170.96,0.00028297,2]
[328884540,1717957833464,-165.03121419,0.00028353,2]
[328884541,1717957833473,-156.658641,0.00028444,2]
[328884542,1717957833483,-821.964521,0.00028444,2]
[328884543,1717957833492,-166.451921,0.00028444,2]
[328884544,1717957833501,-1325.562783,0.00028444,2]
[328884545,1717957833510,-1508.289956,0.00028444,2]
[328884546,1717957833520,-163.252987,0.00028444,2]
[328884547,1717957833531,-1740.2315,0.000287,2]
[328884548,1717957833543,-2758.29023957,0.00028787,14]
[328884549,1717957833557,-12241.70976043,0.00028787,14]
[328884550,1717957833567,-187.80309587,0.00028791,2]
[328884551,1717957833578,-150.0,0.00028839,2]
[328884552,1717957833588,-157.84,0.00028843,2]
[328884553,1717957833597,-156.02019917,0.0002888,2]
[328884554,1717957833608,-382.13509686,0.00028889,2]
[328884555,1717957833618,-153.72212251,0.00028891,2]
[328884556,1717957833628,-999.5,0.000289,2]
[328884557,1717957833637,-150.0,0.00028904,2]
[328884558,1717957833647,-150.0,0.00028904,2]
[328884559,1717957833657,-150.0,0.00028904,2]
[328884560,1717957833667,-153.72212247,0.00028935,2]
[328884561,1717957833677,-500.0,0.00028962,15]
[328884562,1717957833687,-153.72212247,0.00028979,2]
[328884563,1717957833696,-500.0,0.00028986,2]
[328884564,1717957833706,-500.0,0.00028986,2]
[328884565,1717957833716,-443.89063848,0.00028986,2]
[328884566,1717957833726,-15000.0,0.00028987,31]
[328884567,1717957833737,-207.9184,0.00028991,2]
[328884568,1717957833747,-500.0,0.00028991,2]
[328884569,1717957833757,-20745.62351774,0.00029,2]
[328884570,1717957833767,-1488.77203247,0.00029,2]
[328884571,1717957833778,-4170.43277724,0.00029,2]
[328884572,1717957833789,-153.72212247,0.00029023,15]
[328884573,1717957833800,-150.0,0.00029026,2]
[328884574,1717957833811,-150.0,0.00029028,2]
[328884575,1717957833822,-150.0,0.0002904,2]
[328884576,1717957833834,-150.0,0.00029043,2]
[328884577,1717957833844,-150.0,0.00029058,2]
[328884578,1717957833854,-150.0,0.00029061,2]
[328884579,1717957833866,-150.0,0.00029066,2]
[328884580,1717957833875,-150.0,0.00029066,2]
[328884581,1717957833886,-153.72212247,0.00029068,15]
[328884582,1717957833896,-150.0,0.00029068,2]
[328884583,1717957833906,-150.0,0.00029084,2]
[328884584,1717957833916,-150.0,0.00029086,2]
[328884585,1717957833926,-150.0,0.00029089,2]
[328884586,1717957833938,-150.0,0.00029091,2]
[328884587,1717957833948,-380.72,0.00029092,2]
[328884588,1717957833959,-150.0,0.00029092,2]
[328884589,1717957833969,-150.0,0.00029094,2]
[328884590,1717957833980,-150.0,0.00029102,2]
[328884591,1717957833990,-150.0,0.00029104,2]
[328884592,1717957834001,-150.0,0.00029108,2]
[328884593,1717957834012,-153.72212247,0.00029112,15]
[328884594,1717957834022,-150.0,0.00029114,2]
[328884595,1717957834033,-150.0,0.00029115,2]
[328884596,1717957834045,-150.0,0.00029127,2]
[328884597,1717957834058,-150.0,0.00029127,2]
[328884598,1717957834069,-150.0,0.00029139,2]
[328884599,1717957834079,-304.93796968,0.00029144,2]
[328884600,1717957834090,-153.72212247,0.00029156,15]
[328884601,1717957834099,-150.0,0.00029161,2]
[328884602,1717957834111,-150.0,0.00029163,2]
[328884603,1717957834122,-150.0,0.00029163,2]
[328884604,1717957834132,-150.0,0.00029169,2]
[328884605,1717957834142,-150.0,0.00029179,2]
[328884606,1717957834153,-150.0,0.00029179,2]
[328884607,1717957834163,-150.0,0.0002918,2]
[328884608,1717957834173,-150.0,0.00029182,2]
[328884609,1717957834184,-150.0,0.00029184,2]
[328884610,1717957834194,-150.0,0.00029187,2]
[328884611,1717957834203,-150.0,0.00029192,2]
[328884612,1717957834214,-150.0,0.00029193,2]
[328884613,1717957834225,-150.0,0.00029197,2]
[328884614,1717957834235,-150.0,0.00029197,2]
[328884615,1717957834245,-321.31956092,0.00029198,2]
[328884616,1717957834254,-157.0,0.000292,5]
[328884617,1717957834264,-999.00922339,0.000292,2]
[328884618,1717957834273,-1163.53444751,0.000292,3]
[328884619,1717957834283,-161.91737545,0.000292,2]
[328884620,1717957834292,-153.72212247,0.000292,15]
[328884621,1717957834302,-150.0,0.000292,6]
[328884622,1717957834312,-159.4973613,0.000292,2]
[328884623,1717957834322,-150.0,0.00029201,2]
[328884624,1717957834333,-150.0,0.00029203,2]
[328884625,1717957834343,-150.0,0.00029204,2]
[328884626,1717957834354,-150.0,0.00029212,2]
[328884627,1717957834366,-150.0,0.00029213,2]
[328884628,1717957834376,-150.0,0.00029213,2]
[328884629,1717957834387,-150.0,0.00029216,2]
[328884630,1717957834398,-150.0,0.00029219,2]
[328884631,1717957834410,-150.0,0.00029225,2]
[328884632,1717957834421,-150.0,0.00029226,2]
[328884633,1717957834432,-150.0,0.00029239,2]
[328884634,1717957834442,-227.035933,0.0002924,2]
[328884635,1717957834455,-150.0,0.00029241,2]
[328884636,1717957834466,-150.0,0.00029246,2]
[328884637,1717957834478,-150.0,0.00029247,2]
[328884638,1717957834488,-150.0,0.0002925,2]
[328884639,1717957834499,-999.00922336,0.00029251,2]
[328884640,1717957834509,-150.0,0.00029262,2]
[328884641,1717957834520,-150.0,0.00029265,2]
[328884642,1717957834532,-300.0,0.00029266,2]
[328884643,1717957834542,-150.0,0.00029266,2]
[328884644,1717957834550,-150.0,0.00029268,2]
[328884645,1717957834558,-4612.8334294,0.00029272,2]
[328884646,1717957834566,-300.0,0.0002928,2]
[328884647,1717957834575,-1686.6130376,0.0002928,2]
[328884648,1717957834584,-1323.79246,0.0002928,2]
[328884649,1717957834593,-960.9718824,0.0002928,2]
[328884650,1717957834602,-598.1513048,0.0002928,2]
[328884651,1717957834611,-235.3307272,0.0002928,2]
[328884652,1717957834621,-370.940508,0.0002928,2]
[328884653,1717957834630,-370.940508,0.0002928,2]
[328884654,1717957834639,-370.940508,0.0002928,2]
[328884655,1717957834649,-370.940508,0.0002928,2]
[328884656,1717957834659,-370.940508,0.0002928,2]
[328884657,1717957834669,-9064.494676,0.0002928,2]
[328884658,1717957834679,-7116.8901109,0.0002928,2]
[328884659,1717957834688,-5169.2855458,0.0002928,2]
[328884660,1717957834697,-3221.6809807,0.0002928,2]
[328884661,1717957834706,-1274.0764156,0.0002928,2]
[328884662,1717957834715,-150.0,0.00029285,2]
[328884663,1717957834724,-186.81772802,0.0002929,2]
[328884664,1717957834733,-150.0,0.0002929,2]
[328884665,1717957834741,-2049.4336152,0.00029295,2]
[328884666,1717957834750,-370.940508,0.00029295,2]
[328884667,1717957834759,-11012.0992411,0.00029295,2]
[328884668,1717957834768,-302.61221956,0.00029295,2]
[328884669,1717957834777,-150.0,0.00029297,2]
[328884670,1717957834786,-51002.6061627,0.00029297,2]
[328884671,1717957834796,-225.64665536,0.00029298,2]
[328884672,1717957834805,-506.54758575,0.00029298,2]
[328884673,1717957834814,-166.55508735,0.00029298,2]
[328884674,1717957834823,-162.55802593,0.00029298,2]
[328884675,1717957834832,-163.21533727,0.00029298,2]
[328884676,1717957834842,-864.44073182,0.00029298,3]
[328884677,1717957834851,-1011.07818296,0.00029298,2]
[328884678,1717957834861,-155.0,0.00029298,2]
[328884679,1717957834872,-1276.38374304,0.00029298,2]
[328884680,1717957834882,-147.05342532,0.00029298,2]
[328884681,1717957834895,-40.41623048,0.00029298,2]
[328884682,1717957834904,-530.96813832,0.00029298,2]
[328884683,1717957834913,-66.3156312,0.00029298,2]
[328884684,1717957834923,-7412.92945812,0.00029298,2]
[328884685,1717957834932,-1422.41884793,0.00029298,2]
[328884686,1717957834941,-314.9190823,0.00029298,2]
[328884687,1717957834948,-35.0809177,0.00029298,2]
[328884688,1717957834971,-1192.87848412,0.00029298,2]
[328884689,1717957834979,-155.87288091,0.00029298,2]
[328884690,1717957834987,-1940.945401,0.00029298,2]
[328884691,1717957834995,-2243.49952368,0.00029298,2]
[328884692,1717957835005,-620.36078575,0.00029298,2]
[328884693,1717957835015,-688.42270304,0.00029298,2]
[328884694,1717957835024,-169.00124693,0.00029298,2]
[328884711,1717957838247,-1618.50563215,0.00029298,2]
[328884713,1717957838257,-411.49441785,0.00029298,2]
[328884715,1717957838270,-489.7303052,0.00029298,2]
[328884717,1717957838282,-6825.36954895,0.00029298,2]
[328884719,1717957838294,-250.70636602,0.00029298,2]
[328884721,1717957838304,-263.44413224,0.00029298,2]
[328884723,1717957838314,-167.25995279,0.00029298,2]
[328884725,1717957838326,-455.1669176,0.00029298,2]
[328884727,1717957838336,-625.38036387,0.00029298,2]
[328884729,1717957838347,-3063.71989598,0.00029298,2]
[328884731,1717957838357,-156.29575252,0.00029298,2]
[328884733,1717957838369,-325.60601034,0.00029298,2]
[328884735,1717957838378,-268.54586152,0.00029298,2]
[328884737,1717957838388,-155.69611102,0.00029298,2]
[328884739,1717957838398,-2053.44124277,0.00029298,2]
[328884741,1717957838409,-2333.31828049,0.00029298,2]
[328884742,1717957838418,-210.78332715,0.00029298,2]
[328884743,1717957838429,-156.03888376,0.00029298,2]
[328884744,1717957838439,-217.32072534,0.00029298,2]
[328884745,1717957838449,-2000.09259381,0.00029298,2]
[328884746,1717957838459,-155.0,0.00029298,2]
[328884747,1717957838469,-308.3572324,0.00029298,2]
[328884748,1717957838479,-155.0,0.00029298,2]
[328884749,1717957838489,-1779.11097085,0.00029298,2]
[328884750,1717957838500,-275.46328575,0.00029298,2]
[328884751,1717957838510,-1000.0,0.00029298,2]
[328884752,1717957838520,-208.31224876,0.00029298,2]
[328884753,1717957838530,-264.52157603,0.00029298,2]
[328884754,1717957838542,-292.72818215,0.00029298,2]
[328884755,1717957838552,-264.05740703,0.00029298,2]
[328884756,1717957838562,-156.52071995,0.00029298,2]
[328884757,1717957838572,-199.40821897,0.00029298,2]
[328884758,1717957838582,-156.25436202,0.00029298,2]
[328884759,1717957838593,-155.0,0.00029298,2]
[328884760,1717957838602,-155.0,0.00029298,2]
[328884761,1717957838612,-325.55682628,0.00029298,2]
[328884762,1717957838623,-411.24369396,0.00029298,2]
[328884763,1717957838632,-1762.91775327,0.00029298,2]
[328884764,1717957838642,-247.1815908,0.00029298,2]
[328884765,1717957838652,-400.60003504,0.00029298,2]
[328884766,1717957838662,-3212.42301623,0.00029298,2]
[328884767,1717957838672,-1355.18677678,0.00029298,2]
[328884768,1717957838683,-305.1459001,0.00029298,2]
[328884769,1717957838693,-295.92561526,0.00029298,2]
[328884770,1717957838703,-241.34819951,0.00029298,2]
[328884771,1717957838713,-195.06967946,0.00029298,2]
[328884772,1717957838723,-523.92588046,0.00029298,2]
[328884773,1717957838738,-277.38315109,0.00029298,2]
[328884774,1717957838749,-480.94869717,0.00029298,2]
[328884775,1717957838759,-3589.3922936,0.00029298,2]
[328884776,1717957838769,-190.05028641,0.00029298,2]
[328884777,1717957838781,-182.98541568,0.00029298,2]
[328884778,1717957838791,-155.47556844,0.00029298,2]
[328884779,1717957838802,-155.0,0.00029298,2]
[328884780,1717957838813,-155.0,0.00029298,2]
[328884781,1717957838824,-3016.07364784,0.00029298,2]
[328884782,1717957838836,-157.68222462,0.00029298,2]
[328884783,1717957838846,-155.58033917,0.00029298,2]
[328884784,1717957838860,-156.84002219,0.00029298,2]
[328884785,1717957838872,-156.27631752,0.00029298,2]
[328884786,1717957838882,-233.7079612,0.00029298,2]
[328884787,1717957838892,-645.72730004,0.00029298,2]
[328884788,1717957838903,-204.83680168,0.00029298,2]
[328884789,1717957838914,-429.55422421,0.00029298,2]
[328884790,1717957838924,-321.96055433,0.00029298,2]
[328884791,1717957838934,-155.92118391,0.00029298,2]
[328884792,1717957838944,-789.68098133,0.00029298,2]
[328884793,1717957839077,-2060.62366659,0.00029298,2]
[328884794,1717957839088,-282.65716454,0.00029298,2]
[328884795,1717957839098,-1066.6874522,0.00029298,2]
[328884796,1717957839108,-599.06685493,0.00029298,2]
[328884797,1717957839119,-325.64160337,0.00029298,2]
[328884798,1717957839129,-262.76725722,0.00029298,2]
[328884799,1717957839139,-200.38251979,0.00029298,2]
[328884800,1717957839148,-10469.12722352,0.00029298,2]
[328884801,1717957839163,-258.86702614,0.00029298,2]
[328884802,1717957839174,-1.37829068,0.00029298,2]
[328884803,1717957839187,-154.64670766,0.00029298,2]
[328884804,1717957839197,-243.54636962,0.00029298,2]
[328884805,1717957839208,-277.46160255,0.00029298,2]
[328884806,1717957839221,-244.62743291,0.00029298,2]
[328884807,1717957839232,-156.32206566,0.00029298,2]
[328884808,1717957839242,-673.20494959,0.00029298,2]